fUSD/lending_fUSD_20250530
["ID","MTS","AMOUNT","RATE_DAILY","PERIOD"]
[363211136,1748624319818,-150.0,0.00043899,30]
[363211137,1748624319840,-40000.0,0.000439,120]
[363211138,1748624319865,-150.0,0.00043914,30]
[363211139,1748624319889,-150.0,0.00043914,30]
[363211140,1748624319912,-150.0,0.00043936,30]
[363211141,1748624319936,-315.9652326,0.0004394,30]
[363211142,1748624319961,-263.02499752,0.0004394,30]
[363211143,1748624319985,-150.0,0.0004396,30]
[363211144,1748624320010,-150.0,0.00043988,30]
[363211145,1748624320035,-315.9652326,0.00043988,30]
[363211146,1748624320058,-263.02499752,0.00043988,30]
[363211147,1748624320082,-150.0,0.00043999,30]
[363211148,1748624320108,-50000.0,0.00044,44]
[363211149,1748624320133,-50000.0,0.00044,34]
[363211150,1748624320157,-19610.0,0.00044,120]
[363211151,1748624320180,-1505.72049035,0.00044,60]
[363211152,1748624320205,-45501.17789526,0.00044,120]
[363211153,1748624320228,-4710.55814586,0.00044,120]
[363211154,1748624320252,-441.30177304,0.00044,120]
[363211155,1748624320275,-281.04865814,0.00044,120]
[363211156,1748624320301,-201.29562208,0.00044,120]
[363211157,1748624320325,-2000.0,0.00044,120]
[363211158,1748624320351,-600.0,0.00044,120]
[363211159,1748624320377,-10000.0,0.00044,120]
[363211160,1748624320401,-527.685728,0.00044,57]
[363211161,1748624320425,-315.9652326,0.00044035,30]
[363211162,1748624320451,-263.02499752,0.00044035,30]
[363211163,1748624320476,-150.0,0.00044039,30]
[363211164,1748624320500,-150.0,0.00044042,30]
[363211165,1748624320524,-150.0,0.00044047,30]
[363211166,1748624320551,-150.0,0.0004408,30]
[363211167,1748624320575,-315.9652326,0.00044082,30]
[363211168,1748624320599,-263.02499752,0.00044082,30]
[363211169,1748624320625,-150.0,0.00044091,30]
[363211170,1748624320649,-150.0,0.00044098,30]
[363211171,1748624320674,-4655.70562519,0.000441,120]
[363211172,1748624320700,-150.0,0.00044109,30]
[363211173,1748624320725,-460.46,0.0004411,30]
[363211174,1748624320750,-150.0,0.00044124,30]
[363211175,1748624320777,-315.9652326,0.00044129,30]
[363211176,1748624320805,-263.02499752,0.00044129,30]
[363211177,1748624320831,-150.0,0.00044143,30]
[363211178,1748624320855,-315.9652326,0.00044176,30]
[363211179,1748624320879,-263.02499752,0.00044176,30]
[363211180,1748624320905,-150.0,0.0004418,30]
[363211181,1748624320929,-2521609.55,0.0004418,120]
[363211182,1748624320953,-150.0,0.00044195,30]
[363211183,1748624320977,-150.0,0.00044197,30]
[363211184,1748624321002,-150.0,0.00044205,30]
[363211185,1748624321027,-150.0,0.00044214,120]
[363211186,1748624321055,-315.9652326,0.00044223,30]
[363211187,1748624321079,-263.02499752,0.00044223,30]
[363211188,1748624321105,-150.0,0.00044246,120]
[363211189,1748624321130,-1077.0,0.00044246,30]
[363211190,1748624321155,-1077.0,0.00044246,30]
[363211191,1748624321180,-150.0,0.00044246,30]
[363211192,1748624321205,-150.0,0.00044246,30]
[363211193,1748624321231,-150.0,0.00044246,30]
[363211194,1748624321257,-150.0,0.00044246,30]
[363211195,1748624321283,-150.0,0.00044246,30]
[363211196,1748624321315,-150.0,0.00044246,30]
[363211197,1748624321502,-3519.5627066,0.00044258,120]
[363211198,1748624321549,-315.9652326,0.0004427,30]
[363211199,1748624321574,-263.02499752,0.0004427,30]
[363211200,1748624321598,-150.0,0.00044287,30]
[363211201,1748624321623,-1000.0,0.00044295,30]
[363211202,1748624321648,-150.0,0.00044296,30]
[363211203,1748624321675,-150.0,0.00044296,120]
[363211204,1748624321703,-150.0,0.00044298,30]
[363211205,1748624321728,-150.0,0.00044313,30]
[363211206,1748624321754,-315.9652326,0.00044317,30]
[363211207,1748624321779,-263.02499752,0.00044317,30]
[363211208,1748624321807,-150.0,0.00044335,120]
[363211209,1748624321832,-3000.0,0.00044344,46]
[363211210,1748624321856,-150.0,0.0004435,30]
[363211211,1748624321881,-315.9652326,0.00044364,30]
[363211212,1748624321907,-263.02499752,0.00044364,30]
[363211213,1748624321931,-150.0,0.00044369,30]
[363211214,1748624321956,-500.0,0.00044383,120]
[363211215,1748624321980,-3000.0,0.00044383,120]
[363211216,1748624322005,-150.0,0.00044383,30]
[363211217,1748624322029,-353.87,0.00044384,30]
[363211218,1748624322057,-631.93370138,0.0004439,120]
[363211219,1748624322082,-150.0,0.00044395,30]
[363211220,1748624322108,-180124.09102285,0.000444,120]
[363211221,1748624324391,-209.2,0.00041003,30]
[363211222,1748624324416,-209.2,0.00041003,30]
[363211223,1748624324439,-3000.0,0.00041003,30]
[363211224,1748624324463,-3000.0,0.00041003,120]
[363211225,1748624324486,-3000.0,0.00041003,30]
[363211226,1748624324514,-3000.0,0.00041003,120]
[363211227,1748624324541,-3000.0,0.00041003,30]
[363211228,1748624324565,-2561.0,0.00041003,30]
[363211229,1748624324588,-3000.0,0.00041003,30]
[363211230,1748624324613,-1919.0,0.00041003,30]
[363211231,1748624324637,-259.0,0.00041003,31]
[363211232,1748624324662,-258.0,0.00041003,31]
[363211233,1748624324687,-5992.0,0.00041003,120]
[363211234,1748624324714,-2745.54,0.00041003,120]
[363211235,1748624324740,-2745.54,0.00041003,120]
[363211236,1748624324765,-2745.54,0.00041003,120]
[363211237,1748624324792,-2745.54,0.00041003,120]
[363211238,1748624324817,-2745.54,0.00041003,120]
[363211239,1748624324842,-2745.54,0.00041003,120]
[363211240,1748624324866,-2745.54,0.00041003,120]
[363211241,1748624324890,-2745.54,0.00041003,120]
[363211242,1748624324915,-2745.54,0.00041003,120]
[363211243,1748624324940,-2745.54,0.00041003,120]
[363211244,1748624324965,-2745.54,0.00041003,120]
[363211245,1748624324989,-2745.54,0.00041003,120]
[363211246,1748624325014,-2745.54,0.00041003,120]
[363211247,1748624325040,-2745.54,0.00041003,120]
[363211248,1748624325064,-2745.54,0.00041003,120]
[363211249,1748624325089,-2745.54,0.00041003,120]
[363211250,1748624325113,-2745.54,0.00041003,120]
[363211251,1748624325138,-2745.54,0.00041003,120]
[363211252,1748624325164,-2745.54,0.00041003,120]
[363211253,1748624325188,-2745.54,0.00041003,120]
[363211254,1748624325212,-2745.54,0.00041003,120]
[363211255,1748624325238,-2745.54,0.00041003,120]
[363211256,1748624325264,-2745.54,0.00041003,120]
[363211257,1748624325294,-2745.72703824,0.00041003,120]
[363211258,1748624325323,-565.08989117,0.00041003,120]
[363211259,1748624325352,-3458.67034915,0.00041003,60]
[363211260,1748624325382,-1000.0,0.00041003,30]
[363211261,1748624325408,-1000.0,0.00041003,60]
[363211262,1748624325434,-1000.0,0.00041003,30]
[363211263,1748624325460,-1000.0,0.00041003,30]
[363211264,1748624325486,-1000.0,0.00041003,30]
[363211265,1748624325514,-1000.0,0.00041003,30]
[363211266,1748624325555,-1000.0,0.00041003,30]
[363211267,1748624325581,-1000.0,0.00041003,30]
[363211268,1748624325607,-1000.0,0.00041003,30]
[363211269,1748624325634,-1000.0,0.00041003,30]
[363211270,1748624325662,-1000.0,0.00041003,30]
[363211271,1748624325688,-1000.0,0.00041003,30]
[363211272,1748624325716,-1000.0,0.00041003,30]
[363211273,1748624325742,-1000.0,0.00041003,30]
[363211274,1748624325767,-1000.0,0.00041003,30]
[363211275,1748624325795,-817.55106729,0.00041003,30]
[363211276,1748624325819,-1000.0,0.00041003,30]
[363211277,1748624325850,-1000.0,0.00041003,30]
[363211278,1748624325876,-296.74425525,0.00041003,30]
[363211279,1748624325901,-799.76219551,0.00041003,30]
[363211280,1748624325926,-1000.0,0.00041003,60]
[363211281,1748624325951,-1000.0,0.00041003,120]
[363211282,1748624325976,-1000.0,0.00041003,60]
[363211283,1748624326003,-3864.37,0.00041003,120]
[363211284,1748624326029,-3864.37,0.00041003,120]
[363211285,1748624326059,-3864.37,0.00041003,120]
[363211286,1748624326086,-3864.37,0.00041003,120]
[363211287,1748624326113,-3864.37,0.00041003,120]
[363211288,1748624326140,-3864.37,0.00041003,120]
[363211289,1748624326166,-3864.37,0.00041003,120]
[363211290,1748624326193,-3864.37,0.00041003,120]
[363211291,1748624326220,-3864.37,0.00041003,120]
[363211292,1748624326246,-3864.37,0.00041003,120]
[363211293,1748624326273,-3864.37,0.00041003,120]
[363211294,1748624326300,-3864.37,0.00041003,120]
[363211295,1748624326327,-3864.37,0.00041003,120]
[363211296,1748624326354,-3864.37,0.00041003,120]
[363211297,1748624326381,-3864.37,0.00041003,120]
[363211298,1748624326407,-3864.37,0.00041003,120]
[363211299,1748624326432,-1000.0,0.00041003,60]
[363211300,1748624326459,-3864.37,0.00041003,120]
[363211301,1748624326485,-3864.37,0.00041003,120]
[363211302,1748624326512,-3864.37,0.00041003,120]
[363211303,1748624326538,-3864.37,0.00041003,120]
[363211304,1748624326565,-3864.37,0.00041003,120]
[363211305,1748624326590,-3864.37,0.00041003,120]
[363211306,1748624326616,-3864.37,0.00041003,120]
[363211307,1748624326643,-3864.54000001,0.00041003,120]
[363211308,1748624326668,-1186.0,0.00041003,31]
[363211309,1748624326695,-1186.0,0.00041003,31]
[363211310,1748624326721,-1000.0,0.00041003,30]
[363211311,1748624326747,-1189.0,0.00041003,31]
[363211312,1748624326774,-1186.0,0.00041003,31]
[363211313,1748624326802,-421.50194501,0.00041003,120]
[363211314,1748624326828,-1000.0,0.00041003,30]
[363211315,1748624326854,-1000.0,0.00041003,30]
[363211316,1748624326880,-1000.0,0.00041003,30]
[363211317,1748624326905,-1000.0,0.00041003,30]
[363211318,1748624326931,-1000.0,0.00041003,30]
[363211319,1748624326956,-200.0,0.00041003,30]
[363211320,1748624326980,-200.0,0.00041003,30]
[363211321,1748624327005,-200.0,0.00041003,30]
[363211322,1748624327031,-200.0,0.00041003,30]
[363211323,1748624327059,-200.0,0.00041003,30]
[363211324,1748624327084,-200.0,0.00041003,30]
[363211325,1748624327110,-200.0,0.00041003,30]
[363211326,1748624327136,-200.0,0.00041003,30]
[363211327,1748624327162,-200.0,0.00041003,30]
[363211328,1748624327188,-200.0,0.00041003,30]
[363211329,1748624327214,-200.0,0.00041003,30]
[363211330,1748624327239,-200.0,0.00041003,30]
[363211331,1748624327265,-200.0,0.00041003,30]
[363211332,1748624327293,-200.0,0.00041003,30]
[363211333,1748624327320,-200.0,0.00041003,30]
[363211334,1748624327347,-200.0,0.00041003,30]
[363211335,1748624327373,-320.0,0.00041003,30]
[363211336,1748624327403,-1000.0,0.00041003,60]
[363211337,1748624327439,-160.0,0.00041003,30]
[363211338,1748624327464,-160.0,0.00041003,30]
[363211339,1748624327489,-160.0,0.00041003,30]
[363211340,1748624327515,-160.0,0.00041003,30]
[363211341,1748624327546,-160.0,0.00041003,30]
[363211342,1748624327577,-160.0,0.00041003,30]
[363211343,1748624327608,-160.0,0.00041003,30]
[363211344,1748624327642,-160.0,0.00041003,30]
[363211345,1748624327672,-160.0,0.00041003,30]
[363211346,1748624327702,-160.0,0.00041003,30]
[363211347,1748624327729,-160.0,0.00041003,30]
[363211348,1748624327756,-160.0,0.00041003,30]
[363211349,1748624327783,-160.0,0.00041003,30]
[363211350,1748624327812,-160.0,0.00041003,30]
[363211351,1748624327840,-160.0,0.00041003,30]
[363211352,1748624327868,-160.0,0.00041003,30]
[363211353,1748624327897,-160.0,0.00041003,30]
[363211354,1748624328230,-160.0,0.00041003,30]
[363211355,1748624328258,-160.0,0.00041003,30]
[363211356,1748624328289,-160.0,0.00041003,30]
[363211357,1748624328315,-160.0,0.00041003,30]
[363211358,1748624328341,-160.0,0.00041003,30]
[363211359,1748624328365,-160.0,0.00041003,30]
[363211360,1748624328389,-160.0,0.00041003,30]
[363211361,1748624328414,-1000.0,0.00041003,60]
[363211362,1748624328438,-1000.0,0.00041003,30]
[363211363,1748624328464,-1000.0,0.00041003,30]
[363211364,1748624328488,-1000.0,0.00041003,30]
[363211365,1748624328512,-1000.0,0.00041003,60]
[363211366,1748624328539,-1000.0,0.00041003,60]
[363211367,1748624328563,-1000.0,0.00041003,30]
[363211368,1748624328588,-1334.0,0.00041003,120]
[363211369,1748624328614,-50000.0,0.00041003,30]
[363211370,1748624328640,-50000.0,0.00041003,31]
[363211371,1748624328667,-50000.0,0.00041003,32]
[363211372,1748624328694,-50000.0,0.00041003,33]
[363211373,1748624328723,-50000.0,0.00041003,34]
[363211374,1748624328750,-50000.0,0.00041003,35]
[363211375,1748624328776,-209.2,0.00041003,30]
[363211376,1748624328805,-977.00267275,0.00041003,90]
[363211377,1748624328830,-3245.18615721,0.00041003,30]
[363211378,1748624328856,-4332.81164511,0.00041003,120]
[363211379,1748624328880,-518.86870966,0.00041003,30]
[363211380,1748624328905,-408.0680496,0.00041003,30]
[363211381,1748624328930,-387.78970153,0.00041003,30]
[363211382,1748624328954,-300.70408052,0.00041003,120]
[363211383,1748624328978,-1494.92574136,0.00041003,91]
[363211384,1748624329002,-1137.3343179,0.00041003,30]
[363211385,1748624329026,-889.56065228,0.00041003,30]
[363211386,1748624329052,-1000.0,0.00041003,30]
[363211387,1748624329077,-2423.98120054,0.00041003,30]
[363211388,1748624329101,-2829.65836542,0.00041003,30]
[363211389,1748624329125,-1074.1267054,0.00041003,30]
[363211390,1748624329149,-2866.16635647,0.00041003,120]
[363211391,1748624329173,-3376.75932189,0.00041003,120]
[363211392,1748624329197,-906.78857794,0.00041003,120]
[363211393,1748624329222,-2039.43387799,0.00041003,30]
[363211394,1748624329246,-1531.09807894,0.00041003,120]
[363211395,1748624329271,-750.65890501,0.00041003,30]
[363211396,1748624329296,-1801.11803898,0.00041003,30]
[363211397,1748624329322,-1416.8914119,0.00041003,30]
[363211398,1748624329345,-2413.75969582,0.00041003,120]
[363211399,1748624329370,-3438.01935238,0.00041003,120]
[363211400,1748624329394,-2500.0,0.00041003,30]
[363211401,1748624329419,-2360.0,0.00041003,120]
[363211402,1748624329443,-535.28835425,0.00041003,120]
[363211403,1748624329466,-408.79273144,0.00041003,120]
[363211404,1748624329490,-322.07820492,0.00041003,30]
[363211405,1748624329514,-868.52057494,0.00041003,120]
[363211406,1748624329540,-871.32858772,0.00041003,30]
[363211407,1748624329564,-203.06392552,0.00041003,60]
[363211408,1748624329587,-2180.51110905,0.00041003,30]
[363211409,1748624329611,-8503.62915914,0.00041003,120]
[363211410,1748624329634,-879.66219976,0.00041003,30]
[363211411,1748624329658,-193.18404733,0.00041003,30]
[363211412,1748624329682,-2081.40974215,0.00041003,90]
[363211413,1748624329711,-215.49649995,0.00041003,120]
[363211414,1748624329734,-1585.03164236,0.00041003,30]
[363211415,1748624329761,-1585.26984189,0.00041003,120]
[363211416,1748624329786,-1507.24168248,0.00041003,120]
[363211417,1748624329812,-947.51990701,0.00041003,30]
[363211418,1748624329838,-228.77058246,0.00041003,120]
[363211419,1748624329863,-294.7072226,0.00041003,60]
[363211420,1748624329889,-184.80332273,0.00041003,120]
[363211421,1748624329915,-2584.83734179,0.00041003,120]
[363211422,1748624329940,-212.07460182,0.00041003,30]
[363211423,1748624329965,-978.87267141,0.00041003,30]
[363211424,1748624329990,-883.63886635,0.00041003,120]
[363211425,1748624330016,-5261.94618295,0.00041003,120]
[363211426,1748624330042,-182.33176435,0.00041003,120]
[363211427,1748624330066,-876.61309328,0.00041003,120]
[363211428,1748624330091,-1187.11878847,0.00041003,120]
[363211429,1748624330115,-1716.2565588,0.00041003,30]
[363211430,1748624330140,-195.37205314,0.00041003,120]
[363211431,1748624330167,-1030.53562755,0.00041003,30]
[363211432,1748624330192,-747.87147803,0.00041003,120]
[363211433,1748624330217,-357.77461723,0.00041003,30]
[363211434,1748624330241,-269.10172545,0.00041003,60]
[363211435,1748624330266,-472.82030426,0.00041003,120]
[363211436,1748624330292,-159.30890651,0.00041003,120]
[363211437,1748624330317,-227.9146744,0.00041003,120]
[363211438,1748624330342,-1108.65391867,0.00041003,30]
[363211439,1748624330367,-2028.92324134,0.00041003,120]
[363211440,1748624330393,-461.18965475,0.00041003,31]
[363211441,1748624330417,-1030.37365096,0.00041003,30]
[363211442,1748624330442,-3234.2299839,0.00041003,120]
[363211443,1748624330465,-543.20655677,0.00041003,120]
[363211444,1748624330489,-1975.41517946,0.00041003,120]
[363211445,1748624330512,-240.18644918,0.00041003,120]
[363211446,1748624330538,-581.15322821,0.00041003,120]
[363211447,1748624330566,-3144.2153563,0.00041003,30]
[363211448,1748624330591,-2643.91579008,0.00041003,30]
[363211449,1748624330615,-941.51807033,0.00041003,30]
[363211450,1748624330638,-997.0,0.00041003,30]
[363211451,1748624330662,-1090.34330033,0.00041003,120]
[363211452,1748624330687,-386.71096085,0.00041003,120]
[363211453,1748624330713,-1196.2492295,0.00041003,120]
[363211454,1748624330738,-900.398001,0.00041003,30]
[363211455,1748624330982,-2242.45532853,0.00041003,30]
[363211456,1748624331009,-182.36786019,0.00041003,120]
[363211457,1748624331035,-568.04816879,0.00041003,120]
[363211458,1748624331066,-192.71731162,0.00041003,60]
[363211459,1748624331093,-1308.77802644,0.00041003,38]
[363211460,1748624331117,-207.87714359,0.00041003,30]
[363211461,1748624331143,-1017.57106493,0.00041003,120]
[363211462,1748624331168,-2747.44345481,0.00041003,30]
[363211463,1748624331193,-1343.69712998,0.00041003,120]
[363211464,1748624331217,-8053.79521579,0.00041003,120]
[363211465,1748624331242,-577.50167148,0.00041003,120]
[363211466,1748624331266,-3922.47485641,0.00041003,120]
[363211467,1748624331295,-272.27746077,0.00041003,30]
[363211468,1748624331320,-2749.06352598,0.00041003,30]
[363211469,1748624331344,-5846.78041886,0.00041003,30]
[363211470,1748624331370,-1181.49975929,0.00041003,30]
[363211471,1748624331395,-992.1752229,0.00041003,120]
[363211472,1748624331419,-4340.92424254,0.00041003,120]
[363211473,1748624331445,-207.69787086,0.00041003,31]
[363211474,1748624331470,-1794.36992761,0.00041003,30]
[363211475,1748624331495,-3266.20338377,0.00041003,30]
[363211476,1748624331523,-3633.0253823,0.00041003,120]
[363211477,1748624331561,-2375.88291097,0.00041003,30]
[363211478,1748624331589,-1196.11917557,0.00041003,120]
[363211479,1748624331617,-604.72635751,0.00041003,30]
[363211480,1748624331644,-4581.29651664,0.00041003,120]
[363211481,1748624331669,-404.0026937,0.00041003,120]
[363211482,1748624331696,-1492.72566023,0.00041003,30]
[363211483,1748624331723,-3801.78820894,0.00041003,30]
[363211484,1748624331750,-2628.2901766,0.00041003,120]
[363211485,1748624331777,-2243.19599969,0.00041003,30]
[363211486,1748624331811,-382.72601543,0.00041003,120]
[363211487,1748624331836,-1000.0,0.00041003,90]
[363211488,1748624331861,-3258.42184326,0.00041003,30]
[363211489,1748624331885,-2072.96194252,0.00041003,30]
[363211490,1748624331909,-205.24087639,0.00041003,120]
[363211491,1748624331933,-2616.71286041,0.00041003,120]
[363211492,1748624331957,-3386.53997537,0.00041003,120]
[363211493,1748624331982,-1031.78194605,0.00041003,45]
[363211494,1748624332006,-4647.60081033,0.00041003,90]
[363211495,1748624332030,-268.10502207,0.00041003,30]
[363211496,1748624332057,-2025.05647193,0.00041003,30]
[363211497,1748624332081,-6019.54209082,0.00041003,120]
[363211498,1748624332106,-1981.5432565,0.00041003,30]
[363211499,1748624332130,-2496.11,0.00041003,60]
[363211500,1748624332154,-894.0,0.00041003,120]
[363211501,1748624332179,-888949.0,0.00041003,30]
[363211502,1748624332204,-2000000.0,0.00041003,90]
[363211503,1748624332229,-500.0,0.00041003,120]
[363211504,1748624332252,-80000.0,0.00041003,60]
[363211505,1748624332277,-5023.78,0.00041003,120]
[363211506,1748624332305,-3000.0,0.00041003,30]
[363211507,1748624332329,-3000.0,0.00041003,120]
[363211508,1748624332354,-3000.0,0.00041003,30]
[363211509,1748624332378,-2377.0,0.00041003,30]
[363211510,1748624332402,-5026.37,0.00041003,120]
[363211511,1748624332427,-3049.85,0.00041003,120]
[363211512,1748624332452,-3000.0,0.00041003,120]
[363211513,1748624332476,-2000.0,0.00041003,30]
[363211514,1748624332500,-6377.28924693,0.00041003,120]
[363211515,1748624332524,-4501.03740195,0.00041003,120]
[363211516,1748624332548,-160.0,0.00041003,30]
[363211517,1748624332573,-107611.75002903,0.00041003,30]
[363211518,1748624332597,-13250.75322057,0.00041003,120]
[363211519,1748624332623,-500.0,0.00041003,120]
[363211520,1748624332649,-500.0,0.00041003,120]
[363211521,1748624332675,-500.0,0.00041003,120]
[363211522,1748624332702,-500.0,0.00041003,120]
[363211523,1748624332727,-500.0,0.00041003,120]
[363211524,1748624332754,-500.0,0.00041003,120]
[363211525,1748624332781,-383.21999999,0.00041003,120]
[363211526,1748624332808,-3274.43053691,0.00041003,30]
[363211527,1748624332833,-160.0,0.00041003,30]
[363211528,1748624332858,-160.0,0.00041003,30]
[363211529,1748624332882,-160.0,0.00041003,30]
[363211530,1748624332906,-160.0,0.00041003,30]
[363211531,1748624332931,-160.0,0.00041003,30]
[363211532,1748624332956,-191.199999,0.00041003,30]
[363211533,1748624332980,-3000.0,0.00041003,30]
[363211534,1748624333005,-2689.0,0.00041003,30]
[363211535,1748624333030,-1254.58939812,0.00041003,30]
[363211536,1748624333061,-211.83688636,0.00041003,32]
[363211537,1748624333086,-6644.5366293,0.00041003,120]
[363211538,1748624333110,-22903.62651206,0.00041003,30]
[363211539,1748624333133,-445.2,0.00041003,30]
[363211540,1748624333158,-160.0,0.00041003,30]
[363211541,1748624333183,-160.0,0.00041003,30]
[363211542,1748624333207,-160.0,0.00041003,30]
[363211543,1748624333231,-160.0,0.00041003,30]
[363211544,1748624333256,-160.0,0.00041003,30]
[363211545,1748624333281,-160.0,0.00041003,30]
[363211546,1748624333309,-160.0,0.00041003,30]
[363211547,1748624333334,-160.0,0.00041003,30]
[363211548,1748624333359,-2844.0,0.00041003,30]
[363211549,1748624333383,-420.0,0.00041003,120]
[363211550,1748624333409,-553.99,0.00041003,120]
[363211551,1748624333434,-553.99,0.00041003,120]
[363211552,1748624333460,-553.99,0.00041003,120]
[363211553,1748624333485,-553.99,0.00041003,120]
[363211554,1748624333510,-553.99,0.00041003,120]
[363211555,1748624333535,-553.99,0.00041003,120]
[363211556,1748624333565,-553.99,0.00041003,120]
[363211557,1748624333590,-553.99,0.00041003,120]
[363211558,1748624333616,-553.99,0.00041003,120]
[363211559,1748624333641,-553.99,0.00041003,120]
[363211560,1748624333928,-553.99,0.00041003,120]
[363211561,1748624333958,-553.99,0.00041003,120]
[363211562,1748624333985,-553.99,0.00041003,120]
[363211563,1748624334011,-553.99,0.00041003,120]
[363211564,1748624334037,-553.99,0.00041003,120]
[363211565,1748624334067,-553.99,0.00041003,120]
[363211566,1748624334093,-553.99,0.00041003,120]
[363211567,1748624334120,-553.99,0.00041003,120]
[363211568,1748624334148,-553.99,0.00041003,120]
[363211569,1748624334175,-553.99,0.00041003,120]
[363211570,1748624334201,-553.99,0.00041003,120]
[363211571,1748624334227,-553.99,0.00041003,120]
[363211572,1748624334266,-553.99,0.00041003,120]
[363211573,1748624334295,-554.19,0.00041003,120]
[363211574,1748624334321,-669.57309288,0.00041003,120]
[363211575,1748624334346,-7498.6256373,0.00041003,120]
[363211576,1748624334372,-389.5506,0.00041003,120]
[363211577,1748624334397,-1422.0,0.00041003,30]
[363211578,1748624334422,-3010.82415284,0.00041003,60]
[363211579,1748624334447,-711.0,0.00041003,30]
[363211580,1748624334473,-500.0,0.00041003,120]
[363211581,1748624334499,-500.0,0.00041003,120]
[363211582,1748624334529,-500.0,0.00041003,120]
[363211583,1748624334556,-500.0,0.00041003,120]
[363211584,1748624334582,-500.0,0.00041003,120]
[363211585,1748624334609,-500.0,0.00041003,120]
[363211586,1748624334636,-632.87,0.00041003,120]
[363211587,1748624334661,-420.0,0.00041003,120]
[363211588,1748624334688,-1121.65906385,0.00041003,30]
[363211589,1748624334717,-240312.0,0.00041003,120]
[363211590,1748624334744,-277.0,0.00041003,120]
[363211591,1748624334770,-252.47,0.00041003,30]
[363211592,1748624334798,-356.0,0.00041003,30]
[363211593,1748624334824,-226.0,0.00041003,30]
[363211594,1748624334849,-189.464106,0.00041003,30]
[363211595,1748624334874,-178.0,0.00041003,30]
[363211596,1748624334900,-189.464107,0.00041003,30]
[363211597,1748624334924,-5000.0,0.00041003,33]
[363211598,1748624334951,-500.0,0.00041003,120]
[363211599,1748624334978,-500.0,0.00041003,120]
[363211600,1748624335003,-500.0,0.00041003,120]
[363211601,1748624335029,-180.0,0.00041003,120]
[363211602,1748624335056,-189.464106,0.00041003,30]
[363211603,1748624335081,-174.719769,0.00041003,30]
[363211604,1748624335106,-209.2,0.00041003,30]
[363211605,1748624335130,-209.2,0.00041003,30]
[363211606,1748624335157,-158.331906,0.00041003,30]
[363211607,1748624335182,-162.235025,0.00041003,30]
[363211608,1748624335207,-160.157084,0.00041003,30]
[363211609,1748624335232,-190.418021,0.00041003,30]
[363211610,1748624335259,-500.0,0.00041003,120]
[363211611,1748624335284,-500.0,0.00041003,120]
[363211612,1748624335310,-500.0,0.00041003,120]
[363211613,1748624335336,-500.0,0.00041003,120]
[363211614,1748624335362,-500.0,0.00041003,120]
[363211615,1748624335388,-500.0,0.00041003,120]
[363211616,1748624335413,-500.0,0.00041003,120]
[363211617,1748624335438,-500.0,0.00041003,120]
[363211618,1748624335464,-500.0,0.00041003,120]
[363211619,1748624335489,-500.0,0.00041003,120]
[363211620,1748624335514,-500.0,0.00041003,120]
[363211621,1748624335540,-500.0,0.00041003,120]
[363211622,1748624335568,-500.0,0.00041003,120]
[363211623,1748624335594,-493.67,0.00041003,120]
[363211624,1748624335620,-480.310651,0.00041003,30]
[363211625,1748624335646,-509.202936,0.00041003,30]
[363211626,1748624335671,-479.304974,0.00041003,30]
[363211627,1748624335697,-640.911859,0.00041003,30]
[363211628,1748624335725,-534.4227,0.00041003,30]
[363211629,1748624335751,-612.819731,0.00041003,30]
[363211630,1748624335778,-661.100797,0.00041003,30]
[363211631,1748624335807,-549.433807,0.00041003,30]
[363211632,1748624335834,-543.877441,0.00041003,30]
[363211633,1748624335861,-656.36154,0.00041003,30]
[363211634,1748624335888,-531.490055,0.00041003,30]
[363211635,1748624335916,-632.067254,0.00041003,30]